fUSD/lending_fUSD_20241227
["ID","MTS","AMOUNT","RATE_DAILY","PERIOD"]
[346752234,1735263039954,-500.0,0.00011995,2]
[346752235,1735263039964,-1892.00371673,0.00011995,2]
[346752236,1735263039975,-1647.84628327,0.00011995,2]
[346752237,1735263039985,-274.71675444,0.00011995,2]
[346752238,1735263040058,-225.28324556,0.00011995,2]
[346752239,1735263040067,-407.02642378,0.00011995,2]
[346752240,1735263040076,-503.64798661,0.00011995,2]
[346752241,1735263040085,-500.0,0.00011996,2]
[346752242,1735263040095,-500.0,0.00011996,2]
[346752243,1735263040104,-724.39,0.00011996,2]
[346752244,1735263040113,-500.0,0.00011996,2]
[346752245,1735263040123,-745.74,0.00011996,2]
[346752246,1735263040132,-500.0,0.00011996,2]
[346752247,1735263040141,-500.0,0.00011996,2]
[346752248,1735263040150,-275.75389584,0.00011996,2]
[346752249,1735263040164,-224.24610416,0.00011996,2]
[346752250,1735263040174,-500.0,0.00011996,2]
[346752251,1735263040183,-500.0,0.00011996,2]
[346752252,1735263040192,-319.66082506,0.00011996,2]
[346752253,1735263040220,-516.94631111,0.00011994,2]
[346752254,1735263040229,-180.33917494,0.00011996,2]
[346752255,1735263040238,-86.1627578,0.00011996,2]
[346752256,1735263040397,-642.97607776,0.00011994,2]
[346752272,1735263043089,-200.0,0.000116,4]
[346752273,1735263043098,-201.86,0.00011994,2]
[346752274,1735263043109,-145.99,0.00011994,2]
[346752275,1735263043121,-241.66392224,0.00011994,2]
[346752276,1735263043130,-500.0,0.00011994,2]
[346752277,1735263043142,-500.0,0.00011994,2]
[346752278,1735263043152,-500.8613487,0.00011995,2]
[346752279,1735263043164,-6094.5,0.00011995,2]
[346752280,1735263043173,-413.8372422,0.00011996,2]
[346752281,1735263043182,-882.44,0.00011996,2]
[346752282,1735263043191,-177.73970108,0.00011996,2]
[346752283,1735263043205,-476.67811274,0.00011996,2]
[346752284,1735263043216,-295.86218618,0.00011996,2]
[346752285,1735263043225,-317.08284232,0.00011996,2]
[346752289,1735263046107,-432.00902886,0.000117,4]
[346752290,1735263046274,-67.99097114,0.000117,4]
[346752291,1735263046284,-700.0,0.000118,4]
[346752292,1735263046293,-74.92605458,0.00011994,2]
[346752293,1735263046403,-312.508825,0.00011994,2]
[346752294,1735263046413,-106.16025085,0.00011995,2]
[346752784,1735263177368,2851.77393,0.00017999,90]
[346752785,1735263263952,-970.21,9.147e-05,2]
[346752896,1735264152483,921.69,8.677e-05,2]
[346754413,1735264232257,-328.7853602,0.0001,2]
[346754414,1735264232267,-159.74,0.00010137,2]
[346754415,1735264232276,-84.15252619,0.00010586,2]
[346754416,1735264232288,-238.92747381,0.00010586,2]
[346754417,1735264232297,-187.62,0.00010687,2]
[346754418,1735264232307,-250.0,0.00010692,2]
[346754419,1735264232316,-187.62,0.0001074,2]
[346754420,1735264232326,-250.0,0.0001081,2]
[346754421,1735264232335,-203.1017857,0.00010841,2]
[346754422,1735264232345,-1000.0,0.00010925,2]
[346754423,1735264232354,-921.69,0.00010941,2]
[346754424,1735264232364,-400.0,0.00010986,2]
[346754425,1735264232374,-150.0,0.00010986,2]
[346754426,1735264232383,-455.01,0.00011012,2]
[346754427,1735264232393,-168.33,0.00011021,2]
[346754428,1735264232402,-250.0,0.00011023,2]
[346754429,1735264232412,-1061.27,0.000111,2]
[346754430,1735264232422,-201.54,0.000111,2]
[346754431,1735264232431,-202.12,0.000111,2]
[346754432,1735264232441,-200.45,0.000111,2]
[346754433,1735264232450,-201.09,0.000111,2]
[346754434,1735264232459,-200.41,0.000111,2]
[346754435,1735264232470,-203.7,0.00011161,2]
[346754436,1735264232479,-203.0,0.00011161,2]
[346754437,1735264232489,-200.46,0.00011161,2]
[346754438,1735264232498,-201.48,0.00011161,2]
[346754439,1735264232508,-202.04,0.00011161,2]
[346754440,1735264232518,-200.31,0.00011224,2]
[346754441,1735264232527,-200.43,0.00011224,2]
[346754442,1735264232537,-776.98,0.00011341,2]
[346754443,1735264232546,-646.783,0.0001171,2]
[346754444,1735264232555,-201.42,0.0001171,2]
[346754445,1735264232565,-3000.0,0.0001188,2]
[346754446,1735264232574,-2066.62,0.00011891,2]
[346754447,1735264232584,-440.28,0.00011891,2]
[346754448,1735264232593,-151.8,0.00011891,2]
[346754449,1735264232602,-151.05,0.00011891,2]
[346754450,1735264232612,-150.0,0.00011891,2]
[346754451,1735264232621,-436.52,0.00011891,2]
[346754452,1735264232630,-150.0,0.00011891,2]
[346754453,1735264232639,-436.52,0.00011891,2]
[346754454,1735264232651,-357.99,0.00011891,2]
[346754455,1735264232660,-150.0,0.00011891,2]
[346754456,1735264232671,-150.0,0.00011891,2]
[346754457,1735264232681,-5000.0,0.00011894,2]
[346754458,1735264232691,-202.98,0.00011894,2]
[346754459,1735264232700,-202.9852,0.00011894,2]
[346754460,1735264232709,-200.61,0.000119,2]
[346754461,1735264232718,-202.92,0.000119,2]
[346754462,1735264232727,-3088.538,0.00011945,2]
[346754463,1735264232737,-241.87059763,0.00011945,2]
[346754464,1735264232746,-6681.87069756,0.00011945,2]
[346754465,1735264232756,-572.19,0.00011992,2]
[346754466,1735264232766,-6313.11,0.00011992,2]
[346754467,1735264232776,-1079.32,0.00011992,2]
[346754469,1735264232786,-10298.42,0.00011992,2]
[346754471,1735264232796,-4017.1,0.00011992,2]
[346754473,1735264232805,-9310.79,0.00011992,2]
[346754475,1735264232815,-2832.42,0.00011992,2]
[346754476,1735264232824,-990.0,0.00011992,2]
[346754477,1735264232833,-7491.71,0.00011992,2]
[346754478,1735264232842,-2229.42,0.00011992,2]
[346754479,1735264232852,-807.84,0.00011992,2]
[346754480,1735264232861,-500.0,0.00011992,2]
[346754481,1735264232870,-2018.86,0.00011992,2]
[346754482,1735264232879,-987.69,0.00011992,2]
[346754483,1735264232888,-500.0,0.00011992,2]
[346754484,1735264232899,-500.0,0.00011992,2]
[346754485,1735264232908,-6590.51257747,0.00011993,2]
[346754486,1735264232919,-9231.55997168,0.00011993,2]
[346754487,1735264232950,-980.89844529,0.00011993,2]
[346754488,1735264232961,-2059.90069911,0.00011993,2]
[346754490,1735264232973,-449.32685517,0.00011993,2]
[346754492,1735264232984,-299.99,0.00011993,2]
[346754495,1735264232998,-1553.5356151,0.00011993,2]
[346754497,1735264233009,-205154.97393203,0.00011993,2]
[346754498,1735264233020,-385.90652593,0.00011993,2]
[346754503,1735264233062,-299.99,0.00011993,2]
[346754529,1735264238094,-500.81421714,0.00011992,2]
[346754530,1735264238104,-500.0,0.00011992,2]
[346754531,1735264238114,-2531.77,0.00011992,2]
[346754532,1735264238123,-323779.19582632,0.00011993,2]
[346754533,1735264238134,-585.35325323,0.00011993,2]
[346754534,1735264238149,-27814.08407183,0.00011993,2]
[346754535,1735264238158,-504.78392134,0.00011993,2]
[346754536,1735264238167,-501.38265512,0.00011993,2]
[346754537,1735264238178,-501.41704764,0.00011993,2]
[346754538,1735264238187,-501.19975569,0.00011993,2]
[346754539,1735264238196,-861.85,0.00011993,2]
[346754540,1735264238206,-404.93581801,0.00011993,2]
[346754541,1735264238215,-442.18976529,0.00011993,2]
[346754542,1735264238225,-500.0,0.00011993,2]
[346754543,1735264238234,-500.0,0.00011993,2]
[346754544,1735264238243,-442.97660542,0.00011993,2]
[346754545,1735264238253,-500.67079951,0.00011993,2]
[346754546,1735264238262,-313.65002627,0.00011993,2]
[346754547,1735264238271,-500.96238101,0.00011993,2]
[346754548,1735264238280,-500.0,0.00011993,2]
[346754549,1735264238290,-1308.31,0.00011993,2]
[346754550,1735264238299,-501.02891224,0.00011993,2]
[346754551,1735264238308,-627.24,0.00011993,2]
[346754552,1735264238317,-501.06593572,0.00011993,2]
[346754553,1735264238326,-500.0,0.00011993,2]
[346754554,1735264238335,-500.0,0.00011993,2]
[346754555,1735264238344,-501.10920263,0.00011993,2]
[346754556,1735264238354,-948.28,0.00011993,2]
[346754557,1735264238363,-500.94445427,0.00011993,2]
[346754558,1735264238372,-1434.79,0.00011993,2]
[346754559,1735264238382,-500.79301485,0.00011993,2]
[346754560,1735264238391,-1595.76,0.00011993,2]
[346754561,1735264238402,-500.88340292,0.00011993,2]
[346754562,1735264238411,-1430.68,0.00011993,2]
[346754563,1735264238420,-500.85708386,0.00011993,2]
[346754564,1735264238429,-500.99859546,0.00011993,2]
[346754565,1735264238438,-500.91835542,0.00011993,2]
[346754566,1735264238448,-1036.73,0.00011993,2]
[346754567,1735264238458,-501.03184385,0.00011993,2]
[346754568,1735264238467,-500.0,0.00011993,2]
[346754569,1735264238479,-501.05959787,0.00011993,2]
[346754570,1735264238493,-500.0,0.00011993,2]
[346754571,1735264238503,-501.7453971,0.00011993,2]
[346754572,1735264238513,-500.91471814,0.00011993,2]
[346754573,1735264238522,-265.3737125,0.00011993,2]
[346754574,1735264238531,-895.67,0.00011993,2]
[346754575,1735264238540,-500.68833541,0.00011993,2]
[346754576,1735264238550,-502.70295972,0.00011993,2]
[346754577,1735264238559,-501.02640922,0.00011993,2]
[346754578,1735264238568,-500.0,0.00011993,2]
[346754579,1735264238577,-500.0,0.00011993,2]
[346754580,1735264238586,-502.65988919,0.00011993,2]
[346754581,1735264238595,-500.88702961,0.00011993,2]
[346754583,1735264238605,-691.32,0.00011993,2]
[346754585,1735264238614,-501.25432605,0.00011993,2]
[346754587,1735264238623,-500.0,0.00011993,2]
[346754589,1735264238632,-500.90957212,0.00011993,2]
[346754591,1735264238642,-878.83,0.00011993,2]
[346754593,1735264238654,-500.4117255,0.00011993,2]
[346754595,1735264238663,-500.0,0.00011993,2]
[346754597,1735264238673,-500.59479108,0.00011993,2]
[346754599,1735264238682,-501.07023047,0.00011993,2]
[346754601,1735264238691,-500.44504501,0.00011993,2]
[346754603,1735264238700,-1152.92,0.00011993,2]
[346754605,1735264238709,-500.80693192,0.00011993,2]
[346754607,1735264238719,-501.83942242,0.00011993,2]
[346754608,1735264238728,-501.039545,0.00011993,2]
[346754609,1735264238737,-1465.7,0.00011993,2]
[346754610,1735264238746,-500.88795398,0.00011993,2]
[346754611,1735264238755,-500.70965069,0.00011993,2]
[346754612,1735264238765,-501.13852547,0.00011993,2]
[346754613,1735264238774,-615.48,0.00011993,2]
[346754614,1735264238783,-505.1099769,0.00011993,2]
[346754615,1735264238793,-501.50879145,0.00011993,2]
[346754616,1735264238802,-1144.18,0.00011993,2]
[346754617,1735264238811,-500.43296389,0.00011993,2]
[346754618,1735264238821,-627.81,0.00011993,2]
[346754619,1735264238830,-501.30069153,0.00011993,2]
[346754620,1735264238839,-1703.37,0.00011993,2]
[346754621,1735264238849,-502.25361521,0.00011993,2]
[346754622,1735264238858,-1924.95,0.00011993,2]
[346754623,1735264238867,-500.60547515,0.00011993,2]
[346754624,1735264238877,-500.0,0.00011993,2]
[346754625,1735264238887,-500.87904691,0.00011993,2]
[346754626,1735264238898,-500.86577096,0.00011993,2]
[346754627,1735264238908,-500.6087801,0.00011993,2]
[346754628,1735264238918,-501.25106029,0.00011993,2]
[346754629,1735264238927,-500.0,0.00011993,2]
[346754630,1735264238936,-501.14299588,0.00011993,2]
[346754631,1735264238946,-1817.08,0.00011993,2]
[346754632,1735264238955,-617.56,0.00011993,2]
[346754633,1735264238965,-501.14276407,0.00011993,2]
[346754634,1735264238974,-500.73564882,0.00011993,2]
[346754635,1735264238984,-500.0,0.00011993,2]
[346754636,1735264238993,-663.4,0.00011993,2]
[346754637,1735264239006,-501.10779593,0.00011993,2]
[346754638,1735264239016,-500.0,0.00011993,2]
[346754639,1735264239025,-501.13024224,0.00011993,2]
[346754640,1735264239035,-506.99365165,0.00011993,2]
[346754641,1735264239046,-500.0,0.00011993,2]
[346754642,1735264239055,-500.0,0.00011993,2]
[346754643,1735264239064,-501.19685645,0.00011993,2]
[346754644,1735264239074,-594.21519861,0.00011993,2]
[346754645,1735264239084,-500.0,0.00011993,2]
[346754646,1735264239094,-501.2338593,0.00011993,2]
[346754647,1735264239103,-500.9865531,0.00011993,2]
[346754648,1735264239113,-501.69634895,0.00011993,2]
[346754650,1735264239123,-501.2047543,0.00011993,2]
[346754651,1735264239135,-978.18,0.00011993,2]
[346754652,1735264239145,-500.0,0.00011993,2]
[346754653,1735264239157,-2994.13,0.00011993,2]
[346754654,1735264239167,-500.0,0.00011993,2]
[346754655,1735264239177,-500.53086818,0.00011993,2]
[346754656,1735264239188,-500.60269012,0.00011993,2]
[346754657,1735264239198,-884.98,0.00011993,2]
[346754658,1735264239208,-510.14328761,0.00011993,2]
[346754659,1735264239218,-500.0,0.00011993,2]
[346754660,1735264239229,-500.94987608,0.00011993,2]
[346754661,1735264239238,-500.44278038,0.00011993,2]
[346754662,1735264239247,-500.81784461,0.00011993,2]
[346754663,1735264239256,-809.72,0.00011993,2]
[346754664,1735264239266,-879.71,0.00011993,2]
[346754665,1735264239275,-500.7074605,0.00011993,2]
[346754666,1735264239284,-500.69318501,0.00011993,2]
[346754667,1735264239293,-2122.77,0.00011993,2]
[346754668,1735264239302,-2384.62,0.00011993,2]
[346754669,1735264239311,-2498.96,0.00011993,2]
[346754670,1735264239321,-166.42539699,0.00011993,2]
[346754671,1735264239330,-501.09572823,0.00011993,2]
[346754672,1735264239339,-1167.12,0.00011993,2]
[346754673,1735264239348,-500.92016792,0.00011993,2]
[346754674,1735264239357,-686.14,0.00011993,2]
[346754675,1735264239366,-500.98266671,0.00011993,2]
[346754676,1735264239375,-500.0,0.00011993,2]
[346754677,1735264239384,-1284.7,0.00011993,2]
[346754678,1735264239394,-501.4526721,0.00011993,2]
[346754679,1735264239404,-500.50374434,0.00011993,2]
[346754680,1735264239414,-535.22,0.00011993,2]
[346754681,1735264239423,-501.09720924,0.00011993,2]
[346754682,1735264239434,-500.0,0.00011993,2]
[346754683,1735264239443,-501.13594429,0.00011993,2]
[346754684,1735264239452,-500.0,0.00011993,2]
[346754685,1735264239461,-500.0,0.00011993,2]
[346754686,1735264239471,-500.0,0.00011993,2]
[346754687,1735264239479,-508.69508382,0.00011993,2]
[346754688,1735264239488,-1988.03,0.00011993,2]
[346754689,1735264239498,-500.0,0.00011993,2]
[346754690,1735264239507,-500.0,0.00011993,2]
[346754691,1735264239516,-501.22033042,0.00011993,2]
[346754692,1735264239526,-598.99,0.00011993,2]
[346754693,1735264239535,-200.32077784,0.00011993,2]
[346754694,1735264239545,-575.63,0.00011993,2]
[346754695,1735264239554,-1825.87,0.00011993,2]
[346754696,1735264239564,-733.48,0.00011993,2]
[346754697,1735264239574,-500.0,0.00011993,2]
[346754698,1735264239583,-500.0,0.00011993,2]
[346754699,1735264239593,-979.98,0.00011993,2]
[346754700,1735264239602,-2020.65,0.00011993,2]
[346754701,1735264239611,-500.6344199,0.00011993,2]
[346754702,1735264239621,-853.6,0.00011993,2]
[346754703,1735264239630,-500.94421862,0.00011993,2]
[346754704,1735264239639,-500.0,0.00011993,2]
[346754705,1735264239650,-585.15275544,0.00011993,2]
[346754706,1735264239659,-1009.32,0.00011993,2]
[346754707,1735264239669,-500.0,0.00011993,2]
[346754708,1735264239678,-500.0,0.00011993,2]
[346754709,1735264239688,-500.0,0.00011993,2]
[346754710,1735264239697,-500.0,0.00011993,2]
[346754711,1735264239707,-500.0,0.00011993,2]
[346754712,1735264239716,-568.75518829,0.00011993,2]
[346754713,1735264239726,-1698.23,0.00011993,2]
[346754714,1735264239735,-3892.32,0.00011993,2]
[346754715,1735264239745,-980.6,0.00011993,2]
[346754716,1735264239754,-500.71938772,0.00011993,2]
[346754717,1735264239763,-694.51,0.00011993,2]
[346754718,1735264239772,-501.03255241,0.00011993,2]
[346754719,1735264239781,-500.0,0.00011993,2]
[346754720,1735264239790,-501.15621199,0.00011993,2]
[346754721,1735264239800,-560.75,0.00011993,2]
[346754723,1735264239809,-500.0,0.00011993,2]
[346754724,1735264239819,-500.0,0.00011993,2]
[346754725,1735264239828,-1089.3,0.00011993,2]
[346754726,1735264239838,-501.12127019,0.00011993,2]
[346754727,1735264239847,-714.92,0.00011993,2]
[346754728,1735264239856,-168.64633089,0.00011993,2]
[346754729,1735264239866,-500.9914691,0.00011993,2]
[346754730,1735264239875,-500.0,0.00011993,2]
[346754731,1735264239885,-500.0,0.00011993,2]
[346754732,1735264239894,-875.3,0.00011993,2]
[346754733,1735264239905,-500.0,0.00011993,2]
[346754734,1735264239914,-500.0,0.00011993,2]
[346754735,1735264239923,-500.0,0.00011993,2]
[346754736,1735264239932,-500.53436961,0.00011993,2]
[346754737,1735264239941,-500.0,0.00011993,2]
[346754738,1735264239951,-500.0,0.00011993,2]
[346754739,1735264239961,-500.0,0.00011993,2]
[346754740,1735264239971,-800.64,0.00011993,2]
[346754742,1735264240133,-500.0,0.00011993,2]
[346754743,1735264240143,-1276.84,0.00011993,2]
[346754744,1735264240153,-2185.13,0.00011993,2]
[346754745,1735264240164,-500.0,0.00011993,2]
[346754746,1735264240173,-156.546352,0.00011993,2]
[346754747,1735264240183,-157.113152,0.00011993,2]
[346754748,1735264240192,-1285.54348,0.00011993,2]
[346754749,1735264240201,-846.05,0.00011993,2]
[346754750,1735264240210,-4431.36,0.00011993,2]
[346754751,1735264240220,-500.0,0.00011993,2]
[346754752,1735264240229,-501.13351118,0.00011993,2]
[346754753,1735264240239,-964.31,0.00011993,2]
[346754754,1735264240247,-598.53,0.00011993,2]
[346754755,1735264240257,-914.527524,0.00011993,2]
[346754756,1735264240266,-503.7440151,0.00011993,2]
[346754757,1735264240275,-633.96,0.00011993,2]
[346754758,1735264240284,-1378.14,0.00011993,2]
[346754759,1735264240294,-500.0,0.00011993,2]
[346754760,1735264240303,-999.85,0.00011993,2]
[346754761,1735264240312,-504.56417439,0.00011993,2]
[346754762,1735264240322,-816.74,0.00011993,2]
[346754763,1735264240331,-911.18,0.00011993,2]
[346754764,1735264240340,-501.30933074,0.00011993,2]
[346754765,1735264240349,-1830.72,0.00011993,2]
[346754766,1735264240359,-648.29863313,0.00011993,2]
[346754767,1735264240368,-576.14,0.00011993,2]
[346754768,1735264240377,-500.0,0.00011993,2]
[346754769,1735264240386,-501.17164056,0.00011993,2]
[346754770,1735264240395,-500.0,0.00011993,2]
[346754771,1735264240405,-501.30915815,0.00011993,2]
[346754772,1735264240414,-5846.37,0.00011993,2]
[346754773,1735264240424,-509.83208157,0.00011993,2]
[346754774,1735264240433,-500.0,0.00011993,2]
[346754775,1735264240442,-6097.2,0.00011993,2]
[346754776,1735264240451,-501.57802826,0.00011993,2]
[346754777,1735264240460,-509.09673828,0.00011993,2]
[346754778,1735264240469,-500.0,0.00011993,2]
[346754779,1735264240479,-623.6,0.00011993,2]
[346754780,1735264240487,-500.0,0.00011993,2]
[346754781,1735264240497,-500.0,0.00011993,2]
[346754782,1735264240506,-2696.14,0.00011993,2]
[346754783,1735264240515,-506.85820672,0.00011993,2]
[346754784,1735264240524,-1492.5,0.00011993,2]
[346754785,1735264240533,-541.35,0.00011993,2]
[346754786,1735264240543,-500.0,0.00011993,2]
[346754787,1735264240552,-1797.57,0.00011993,2]
[346754788,1735264240561,-500.0,0.00011993,2]
[346754789,1735264240570,-500.0,0.00011993,2]
[346754790,1735264240579,-2507.49,0.00011993,2]
[346754791,1735264240589,-802.12,0.00011993,2]
[346754792,1735264240598,-461.64513001,0.00011993,2]
[346754793,1735264240607,-500.0,0.00011993,2]
[346754794,1735264240616,-382.41527247,0.00011993,2]
[346754795,1735264240625,-500.0,0.00011993,2]
[346754796,1735264240635,-500.0,0.00011993,2]
[346754797,1735264240644,-500.0,0.00011993,2]
[346754798,1735264240654,-3179.32,0.00011993,2]
[346754799,1735264240663,-13641.59766543,0.00011993,2]
[346754800,1735264240682,-998.69233457,0.00011993,2]
[346754801,1735264240691,-500.0,0.00011993,2]
[346754802,1735264240700,-2196.02,0.00011993,2]
[346754803,1735264240710,-500.0,0.00011993,2]
[346754805,1735264240719,-1091.51,0.00011993,2]
[346754806,1735264240728,-500.8801533,0.00011993,2]
[346754807,1735264240738,-500.0,0.00011993,2]
[346754808,1735264240748,-500.0,0.00011993,2]
[346754809,1735264240757,-322.9052167,0.00011993,2]
[346754810,1735264240767,-500.0,0.00011993,2]
[346754811,1735264240776,-289.77249813,0.00011993,2]
[346754812,1735264240786,-500.0,0.00011993,2]
[346754813,1735264240796,-508.6959896,0.00011993,2]
[346754814,1735264240805,-1760.33,0.00011993,2]
[346754815,1735264240815,-500.0,0.00011993,2]
[346754816,1735264240824,-1140.3,0.00011993,2]
[346754817,1735264240833,-500.0,0.00011993,2]
[346754818,1735264240842,-500.0,0.00011993,2]
[346754819,1735264240853,-3440.02,0.00011993,2]
[346754820,1735264240863,-501.83657468,0.00011993,2]
[346754821,1735264240875,-500.0,0.00011993,2]
[346754822,1735264240884,-501.80126742,0.00011993,2]
[346754823,1735264240895,-500.0,0.00011993,2]
[346754824,1735264240905,-500.0,0.00011993,2]
[346754825,1735264240914,-501.22527341,0.00011993,2]
[346754826,1735264240924,-905.15,0.00011993,2]
[346754827,1735264240933,-3208.37,0.00011993,2]
[346754828,1735264240943,-1875.14,0.00011993,2]
[346754829,1735264240952,-1414.85,0.00011993,2]
[346754830,1735264240961,-500.0,0.00011993,2]
[346754831,1735264240971,-935.79,0.00011993,2]
[346754832,1735264240980,-500.0,0.00011993,2]
[346754833,1735264240990,-503.58015,0.00011993,2]
[346754834,1735264241001,-1377.9,0.00011993,2]
[346754835,1735264241011,-2372.44,0.00011993,2]
[346754836,1735264241020,-500.0,0.00011993,2]
[346754837,1735264241030,-1217.6,0.00011993,2]
[346754838,1735264241039,-500.0,0.00011993,2]
[346754839,1735264241050,-500.0,0.00011993,2]
[346754840,1735264241059,-8399.52285372,0.00011993,2]
[346754841,1735264241168,-503.23346168,0.00011992,2]
[346754842,1735264241177,-520.51333766,0.00011993,2]
[346754843,1735264241189,-52.13380862,0.00011993,2]
[346754844,1735264241198,-444.86618138,0.00011993,2]
[346754845,1735264241779,-55.13381862,0.00011993,2]
[346754846,1735264241789,-2176.7612984,0.00011993,2]
[346754847,1735264241826,-3888.8387016,0.00011993,2]
[346754848,1735264241835,-500.0,0.00011993,2]
[346754849,1735264241844,-500.0,0.00011993,2]
[346754850,1735264241855,-505.5110907,0.00011993,2]
[346754851,1735264241865,-500.0,0.00011993,2]
[346754852,1735264241874,-6161.58,0.00011993,2]
[346754853,1735264241884,-1132.70358035,0.00011993,2]
[346754854,1735264241896,-500.0,0.00011993,2]
[346754855,1735264241967,-1491.24641965,0.00011993,2]
[346754856,1735264241977,-3123.95,0.00011993,2]
[346754857,1735264241987,-500.0,0.00011993,2]
[346754858,1735264241998,-3123.95,0.00011993,2]
[346754859,1735264242008,-3123.95,0.00011993,2]
[346754860,1735264242018,-301.23333091,0.00011993,2]
[346754861,1735264242027,-500.0,0.00011993,2]
[346754863,1735264242036,-500.0,0.00011993,2]
[346754864,1735264242046,-949.52,0.00011993,2]
[346754865,1735264242055,-549.18112116,0.00011993,2]
[346754866,1735264242064,-954.98,0.00011993,2]
[346754867,1735264242073,-500.0,0.00011993,2]
[346754868,1735264242082,-500.0,0.00011993,2]
[346754869,1735264242091,-8231.65,0.00011993,2]
[346754870,1735264242100,-500.0,0.00011993,2]
[346754871,1735264242109,-5840.57,0.00011993,2]
[346754872,1735264242271,-500.0,0.00011993,2]
[346754873,1735264242281,-1057.93,0.00011993,2]
[346754874,1735264242290,-500.0,0.00011993,2]
[346754875,1735264242300,-500.0,0.00011993,2]
[346754876,1735264242312,-1571.78,0.00011993,2]
[346754877,1735264242322,-500.0,0.00011993,2]
[346754878,1735264242331,-3392.35,0.00011993,2]
[346754879,1735264242342,-500.0,0.00011993,2]
[346754880,1735264242352,-1544.46,0.00011993,2]
[346754881,1735264242364,-1024.66,0.00011993,2]
[346754882,1735264242376,-500.0,0.00011993,2]
[346754883,1735264242386,-2086.4,0.00011993,2]
[346754884,1735264242395,-500.0,0.00011993,2]
[346754885,1735264242406,-13379.47,0.00011993,2]
[346754886,1735264242415,-1154.17,0.00011993,2]
[346754887,1735264242426,-943.02,0.00011993,2]
[346754888,1735264242436,-500.0,0.00011993,2]
[346754889,1735264242445,-500.0,0.00011993,2]
[346754890,1735264242455,-4024.16,0.00011993,2]
[346754891,1735264242465,-500.0,0.00011993,2]
[346754892,1735264242475,-500.0,0.00011993,2]
[346754893,1735264242485,-501.2218265,0.00011993,2]
[346754894,1735264242495,-307.33340663,0.00011993,2]
[346754896,1735264242505,-500.0,0.00011993,2]
[346754897,1735264242516,-500.0,0.00011993,2]
[346754898,1735264242526,-500.0,0.00011993,2]
[346754899,1735264242536,-500.0,0.00011993,2]
[346754900,1735264242545,-1422.98,0.00011993,2]
[346754901,1735264242555,-921.13,0.00011993,2]
[346754902,1735264242564,-500.0,0.00011993,2]
[346754903,1735264242573,-517.62523893,0.00011993,2]
[346754904,1735264242583,-500.0,0.00011993,2]
[346754905,1735264242592,-500.0,0.00011993,2]
[346754906,1735264242602,-2880.07,0.00011993,2]
[346754907,1735264242611,-500.0,0.00011993,2]
[346754908,1735264242620,-555.35848312,0.00011993,2]
[346754909,1735264242629,-500.0,0.00011993,2]
[346754910,1735264242638,-500.84540818,0.00011993,2]
[346754911,1735264242647,-1458.94,0.00011993,2]
[346754912,1735264242657,-500.0,0.00011993,2]
[346754913,1735264242666,-503.80262957,0.00011993,2]
[346754914,1735264242675,-500.0,0.00011993,2]
[346754915,1735264242685,-18782.26,0.00011993,2]
[346754916,1735264242695,-500.0,0.00011993,2]
[346754917,1735264242704,-498.65048202,0.00011993,2]
[346754918,1735264242714,-512.91700048,0.00011993,2]
[346754919,1735264242723,-2042.12,0.00011993,2]
[346754920,1735264242733,-500.0,0.00011993,2]
[346754921,1735264242742,-500.0,0.00011993,2]
[346754922,1735264242752,-1700.06,0.00011993,2]
[346754923,1735264242762,-500.0,0.00011993,2]